[Event "Romanian-ch Open 2022"]
[Site "Eforie Nord"]
[Date "2022.02.24"]
[Round "6.17"]
[White "Nastore, Pavel-Alexandru"]
[Black "Andronescu, Madalin"]
[Result "1-0"]
[ECO "C67"]
[WhiteElo "2306"]
[BlackElo "2122"]
[Annotator "RC"]
[PlyCount "125"]
[EventDate "2022.02.20"]
[EventType "swiss"]
[EventCountry "ROU"]
[SourceTitle "playchess.com"]
[Source "ChessBase"]
[SourceQuality "1"]
[TimeControl "40/5400+30:900+30"]

1. e4 {[%emt 0:00:10]} e5 {[%emt 0:00:13]} 2. Nf3 {[%emt 0:00:11]} Nc6 {[%emt 0:00:05]} 3. Bb5 {[%emt 0:00:13]} Nf6 {[%emt 0:00:11]} 4. O-O {[%emt 0:00:15]} Nxe4 {[%emt 0:00:20]} 5. Re1 {[%emt 0:01:03]} Nd6 {[%emt 0:00:16]} 6. Nxe5 {[%emt 0:00:26]} Nxe5 {[%emt 0:00:26]} 7. Rxe5+ {[%emt 0:00:09]} Be7 {[%emt 0:00:04]} 8. Bf1 {[%emt 0:04:31]} O-O {[%emt 0:00:54]} 9. Nc3 {[%emt 0:12:41]} Re8 {[%emt 0:02:20]} 10. d4 {[%emt 0:09:18]} Bf6 {[%emt 0:18:40]} 11. Rxe8+ {[%emt 0:00:27]} Nxe8 {[%emt 0:00:04]} 12. Nd5 {[%emt 0:03:34]} c6 {[%emt 0:00:11]} 13. Nxf6+ {[%emt 0:00:06]} Nxf6 {[%emt 0:00:04]} 14. Bd3 {[%emt 0:13:52]} d5 {[%emt 0:03:05]} 15. Bg5 {[%emt 0:10:53]} Qd6 {[%emt 0:04:41]} 16. Qe1 {[%emt 0:10:30]} Bd7 {[%emt 0:01:06]} 17. Qe5 {[%emt 0:02:22]} Qxe5 {[%emt 0:01:04]} 18. dxe5 {[%emt 0:00:21]} Ne4 {[%emt 0:00:05]} 19. Be3 {[%emt 0:01:45]} h6 {[%emt 0:07:40]} 20. Rd1 {[%emt 0:04:23]} Be6 {[%emt 0:01:44]} 21. f3 {[%emt 0:09:38]} Ng5 {[%emt 0:00:10]} 22. h4 {[%emt 0:00:02]} Nh7 {[%emt 0:00:07]} 23. g4 {[%emt 0:00:49]} f6 {[%emt 0:03:38]} 24. exf6 {[%emt 0:00:50]} Nxf6 {[%emt 0:00:05]} 25. Re1 {[%emt 0:00:20]} Kf7 {[%emt 0:18:07]} 26. g5 {[%emt 0:05:37]} hxg5 {[%emt 0:00:10]} 27. hxg5 {[%emt 0:00:04]} Nh5 {[%emt 0:00:57]} 28. g6+ {[%emt 0:02:34]} Ke7 {[%emt 0:00:36]} 29. f4 {[%emt 0:00:18]} Ng3 {[%emt 0:01:55]} 30. Bxa7 {[%emt 0:05:40]} Rxa7 {[%emt 0:02:31]} 31. f5 {[%emt 0:00:04]} Ne4 {[%emt 0:00:03]} 32. Bxe4 {[%emt 0:00:03]} dxe4 {[%emt 0:00:04]} 33. Rxe4 {[%emt 0:00:02]} Ra5 {[%emt 0:00:45]} 34. Rxe6+ {[%emt 0:00:23]} Kd7 {[%emt 0:00:05]} 35. Re4 {[%emt 0:03:21]} Rxf5 {[%emt 0:00:06]} 36. Rg4 {[%emt 0:00:03]} Ke6 {[%emt 0:01:38]} 37. a4 {[%emt 0:00:08]} b5 {[%emt 0:04:35]} 38. a5 {[%emt 0:01:23]} b4 {[%emt 0:00:04]} 39. Rxb4 {[%emt 0:00:54]} Rxa5 {[%emt 0:00:06]} 40. Kf2 {[%emt 0:00:00]} Kf5 {[%emt 0:00:00]} 41. Rc4 {[%emt 0:02:27]} Ra6 {[%emt 0:02:46]} 42. b4 {[%emt 0:00:35]} Kxg6 {[%emt 0:00:17]} 43. Rc5 {[%emt 0:00:12]} Kf6 {[%emt 0:02:11]} 44. Kf3 {[%emt 0:00:23]} Ke6 {[%emt 0:00:55]} 45. Ke4 {[%emt 0:00:56]} Rb6 {[%emt 0:05:56]} 46. c3 {[%emt 0:00:06]} Ra6 {[%emt 0:00:16]} 47. Re5+ {[%emt 0:02:35]} Kf6 {[%emt 0:00:13]} 48. Rf5+ {[%emt 0:00:13]} Ke6 {[%emt 0:00:07]} 49. Rc5 {[%emt 0:00:33]} Rb6 {[%emt 0:00:45]} 50. Kd4 {[%emt 0:00:47]} Ra6 {[%emt 0:00:14]} 51. Rg5 {[%emt 0:00:22]} Kf6 {[%emt 0:00:12]} 52. Ra5 {[%emt 0:00:44]} Rb6 {[%emt 0:04:04]} 53. Kc5 {[%emt 0:02:16]} Rb8 {[%emt 0:00:04]} 54. Ra6 {[%emt 0:00:17]} g5 {[%emt 0:00:09]} 55. Rxc6+ {[%emt 0:02:25]} Kf5 {[%emt 0:00:07]} 56. b5 {[%emt 0:00:23]} g4 {[%emt 0:00:41]} 57. Ra6 {[%emt 0:02:26]} g3 {[%emt 0:01:21]} 58. c4 {[%emt 0:00:53]} g2 {[%emt 0:00:46]} 59. Ra1 {[%emt 0:00:09]} Rg8 {[%emt 0:00:08]} 60. Rg1 {[%emt 0:00:30]} Ke4 {[%emt 0:00:41]} 61. b6 {[%emt 0:00:38]} Rg7 {[%emt 0:12:29]} 62. Kc6 {[%emt 0:01:55]} Rg6+ {[%emt 0:01:50]} 63. Kb5 {[%emt 0:00:07]} 1-0

[Event "Romanian-ch Open 2022"]
[Site "Eforie Nord"]
[Date "2022.02.24"]
[Round "6.18"]
[White "Ignat, Matei-Marius"]
[Black "Dobre, Claudiu-Cristian"]
[Result "0-1"]
[ECO "B11"]
[WhiteElo "2053"]
[BlackElo "2298"]
[Annotator "RC"]
[PlyCount "80"]
[EventDate "2022.02.20"]
[EventType "swiss"]
[EventCountry "ROU"]
[SourceTitle "playchess.com"]
[Source "ChessBase"]
[SourceQuality "1"]
[TimeControl "40/5400+30:900+30"]

1. e4 {[%emt 0:00:02]} c6 {[%emt 0:00:06]} 2. Nf3 {[%emt 0:00:07]} d5 {[%emt 0:00:05]} 3. Nc3 {[%emt 0:00:05]} Nf6 {[%emt 0:00:06]} 4. e5 {[%emt 0:00:08]} Ne4 {[%emt 0:00:04]} 5. Ne2 {[%emt 0:00:03]} Qb6 {[%emt 0:00:04]} 6. d4 {[%emt 0:00:05]} c5 {[%emt 0:00:03]} 7. Ng3 {[%emt 0:00:19]} Nc6 {[%emt 0:10:49]} 8. Bd3 {[%emt 0:00:26]} Nxg3 {[%emt 0:16:31]} 9. fxg3 {[%emt 0:00:33]} Bg4 {[%emt 0:06:52]} 10. h3 {[%emt 0:35:23]} Bxf3 {[%emt 0:01:10]} 11. Qxf3 {[%emt 0:00:08]} c4 {[%emt 0:00:19]} 12. O-O {[%emt 0:26:53]} O-O-O {[%emt 0:10:49]} 13. Be2 {[%emt 0:04:23]} Nxd4 {[%emt 0:02:37]} 14. Qg4+ {[%emt 0:00:27]} e6 {[%emt 0:00:39]} 15. Be3 {[%emt 0:04:26]} Nxe2+ {[%emt 0:01:46]} 16. Qxe2 {[%emt 0:00:05]} Bc5 {[%emt 0:01:03]} 17. Bxc5 {[%emt 0:01:08]} Qxc5+ {[%emt 0:00:08]} 18. Kh2 {[%emt 0:11:37]} Rd7 {[%emt 0:00:35]} 19. Qg4 {[%emt 0:00:06]} g6 {[%emt 0:00:34]} 20. Rf6 {[%emt 0:00:30]} Re8 {[%emt 0:12:11]} 21. Raf1 {[%emt 0:01:33]} Ree7 {[%emt 0:00:40]} 22. c3 {[%emt 0:07:10]} Qe3 {[%emt 0:07:00]} 23. Qf4 {[%emt 0:01:48]} Qxf4 {[%emt 0:00:58]} 24. R6xf4 {[%emt 0:00:23]} b5 {[%emt 0:07:05]} 25. g4 {[%emt 0:00:12]} a5 {[%emt 0:02:28]} 26. g5 {[%emt 0:01:08]} b4 {[%emt 0:02:42]} 27. Rh4 {[%emt 0:00:06]} a4 {[%emt 0:01:58]} 28. cxb4 {[%emt 0:02:55]} a3 {[%emt 0:00:10]} 29. bxa3 {[%emt 0:00:05]} d4 {[%emt 0:01:21]} 30. Rc1 {[%emt 0:02:42]} c3 {[%emt 0:00:21]} 31. Rf4 {[%emt 0:00:08]} Rd5 {[%emt 0:08:22]} 32. Re4 {[%emt 0:00:53]} Rc7 {[%emt 0:00:52]} 33. Ree1 {[%emt 0:01:03]} d3 {[%emt 0:00:30]} 34. Red1 {[%emt 0:00:00]} c2 {[%emt 0:02:13]} 35. Rd2 {[%emt 0:00:00]} Ra7 {[%emt 0:01:31]} 36. Kg3 {[%emt 0:00:11]} Rxa3 {[%emt 0:00:58]} 37. Kf4 {[%emt 0:00:52]} Rxa2 {[%emt 0:00:30]} 38. Ke3 {[%emt 0:00:32]} Ra3 {[%emt 0:00:11]} 39. Ke4 {[%emt 0:00:34]} Kb7 {[%emt 0:00:40]} 40. Ke3 {[%emt 0:00:00]} Rb3 {[%emt 0:00:00]} 0-1

[Event "Romanian-ch Open 2022"]
[Site "Eforie Nord"]
[Date "2022.02.24"]
[Round "6.19"]
[White "Voiteanu, Gabriel"]
[Black "Sarighioleanu, Sebastian-Laure"]
[Result "1-0"]
[ECO "E73"]
[WhiteElo "2207"]
[BlackElo "2045"]
[Annotator "RC"]
[PlyCount "67"]
[EventDate "2022.02.20"]
[EventType "swiss"]
[EventCountry "ROU"]
[SourceTitle "playchess.com"]
[Source "ChessBase"]
[SourceQuality "1"]
[TimeControl "40/5400+30:900+30"]

1. d4 {[%emt 0:00:50]} Nf6 {[%emt 0:00:16]} 2. c4 {[%emt 0:00:05]} g6 {[%emt 0:00:15]} 3. Nc3 {[%emt 0:00:08]} Bg7 {[%emt 0:00:24]} 4. e4 {[%emt 0:00:05]} d6 {[%emt 0:00:17]} 5. Be2 {[%emt 0:00:15]} O-O {[%emt 0:00:45]} 6. Be3 {[%emt 0:00:18]} Nc6 {[%emt 0:00:58]} 7. g4 {[%emt 0:13:14]} e5 {[%emt 0:01:21]} 8. d5 {[%emt 0:02:58]} Nd4 {[%emt 0:00:08]} 9. g5 {[%emt 0:02:04]} Nd7 {[%emt 0:23:35]} 10. Nf3 {[%emt 0:04:27]} f5 {[%emt 0:14:46]} 11. h4 {[%emt 0:26:37]} Nc5 {[%emt 0:21:59]} 12. Nxd4 {[%emt 0:01:42]} exd4 {[%emt 0:00:23]} 13. Bxd4 {[%emt 0:00:11]} fxe4 {[%emt 0:01:07]} 14. Bxg7 {[%emt 0:01:51]} Kxg7 {[%emt 0:00:05]} 15. Qd4+ {[%emt 0:00:30]} Kg8 {[%emt 0:00:09]} 16. b4 {[%emt 0:11:48]} Nd3+ {[%emt 0:02:55]} 17. Bxd3 {[%emt 0:01:00]} exd3 {[%emt 0:00:02]} 18. O-O-O {[%emt 0:08:51]} Bf5 {[%emt 0:03:08]} 19. f4 {[%emt 0:01:14]} Qd7 {[%emt 0:04:51]} 20. Rde1 {[%emt 0:06:50]} Rae8 {[%emt 0:01:59]} 21. Kd2 {[%emt 0:02:00]} a6 {[%emt 0:08:32]} 22. Rxe8 {[%emt 0:04:23]} Rxe8 {[%emt 0:00:02]} 23. Re1 {[%emt 0:00:29]} Rxe1 {[%emt 0:02:22]} 24. Kxe1 {[%emt 0:00:01]} Qe8+ {[%emt 0:01:42]} 25. Kd2 {[%emt 0:00:12]} b6 {[%emt 0:00:58]} 26. Qf6 {[%emt 0:01:18]} b5 {[%emt 0:06:49]} 27. cxb5 {[%emt 0:00:53]} axb5 {[%emt 0:00:01]} 28. h5 {[%emt 0:00:22]} c5 {[%emt 0:02:05]} 29. h6 {[%emt 0:01:24]} Qd7 {[%emt 0:00:01]} 30. bxc5 {[%emt 0:03:45]} b4 {[%emt 0:01:26]} 31. Na4 {[%emt 0:02:55]} dxc5 {[%emt 0:00:02]} 32. Nxc5 {[%emt 0:00:33]} Qa7 {[%emt 0:00:11]} 33. Qb2 {[%emt 0:00:24]} Qc7 {[%emt 0:02:53]} 34. Qe5 {[%emt 0:00:59]} 1-0

[Event "Romanian-ch Open 2022"]
[Site "Eforie Nord"]
[Date "2022.02.24"]
[Round "6.20"]
[White "Prelipcean, Eric-Matei"]
[Black "Daianu, Cristian-Clement"]
[Result "0-1"]
[ECO "B66"]
[WhiteElo "1935"]
[BlackElo "2171"]
[Annotator "NA RC"]
[PlyCount "94"]
[EventDate "2022.02.20"]
[EventType "swiss"]
[EventCountry "ROU"]
[SourceTitle "playchess.com"]
[Source "ChessBase"]
[SourceQuality "1"]
[TimeControl "40/5400+30:900+30"]

1. e4 {[%emt 0:00:02]} c5 {[%emt 0:00:44]} 2. Nf3 {[%emt 0:00:04]} d6 {[%emt 0:00:06]} 3. d4 {[%emt 0:00:07]} cxd4 {[%emt 0:00:07]} 4. Nxd4 {[%emt 0:00:05]} Nf6 {[%emt 0:00:06]} 5. Nc3 {[%emt 0:00:07]} a6 {[%emt 0:00:05]} 6. Bg5 {[%emt 0:00:10]} Nc6 {[%emt 0:04:52]} 7. Qd2 {[%emt 0:06:39]} Bd7 {[%emt 0:00:20]} 8. f3 {[%emt 0:01:04]} e6 {[%emt 0:04:05]} 9. O-O-O {[%emt 0:02:29]} Be7 {[%emt 0:01:35]} 10. Be3 {[%emt 0:00:06]} b5 {[%emt 0:02:16]} 11. g4 $1 {[%emt 0:00:48]} h6 {[%emt 0:05:56]} 12. Rg1 {[%emt 0:05:59]} Rc8 {[%emt 0:08:35]} 13. Kb1 {[%emt 0:01:50]} Ne5 {[%emt 0:00:44] [#]} 14. h4 {[%emt 0:05:59]} (14. a3 $1 $16) 14... b4 $1 {[%emt 0:13:46]} 15. Nce2 {[%emt 0:00:22]} d5 {[%emt 0:19:33]} 16. g5 {[%emt 0:06:46]} hxg5 {[%emt 0:00:15]} 17. hxg5 {[%emt 0:00:07]} Nxf3 $18 {[%emt 0:01:35]} 18. Nxf3 {[%emt 0:01:04]} Nxe4 {[%emt 0:00:02]} 19. Qc1 {[%emt 0:01:14]} Ba4 {[%emt 0:07:27]} 20. b3 {[%emt 0:00:27]} Bb5 {[%emt 0:00:10]} 21. Bd4 {[%emt 0:04:14]} Bc5 {[%emt 0:03:10]} 22. Bxc5 {[%emt 0:13:56]} Bxe2 {[%emt 0:07:25]} 23. Bxe2 {[%emt 0:00:37]} Nc3+ {[%emt 0:00:15]} 24. Kb2 {[%emt 0:00:12]} Rxc5 {[%emt 0:07:35]} 25. Bd3 {[%emt 0:00:51]} Qa5 {[%emt 0:03:39]} 26. a4 {[%emt 0:00:30]} bxa3+ {[%emt 0:00:04]} 27. Ka1 {[%emt 0:00:05]} Nxd1 {[%emt 0:00:07]} 28. Rxd1 {[%emt 0:00:06]} Rh3 {[%emt 0:00:15]} 29. Ne1 {[%emt 0:03:05]} Rh1 {[%emt 0:06:26]} 30. Ka2 {[%emt 0:00:45]} Qc3 {[%emt 0:02:09]} 31. Qa1 {[%emt 0:00:25]} Qxa1+ {[%emt 0:01:09]} 32. Rxa1 {[%emt 0:00:24]} e5 {[%emt 0:00:06]} 33. Bxa6 {[%emt 0:00:57]} Kd7 {[%emt 0:00:26]} 34. Rb1 {[%emt 0:06:17]} Kc7 {[%emt 0:00:47]} 35. Be2 {[%emt 0:02:37]} Rc3 {[%emt 0:02:08]} 36. Kxa3 {[%emt 0:00:32]} Re3 {[%emt 0:00:00]} 37. Ng2 {[%emt 0:01:30]} Rxe2 {[%emt 0:00:00]} 38. Rxh1 {[%emt 0:00:17]} Rxg2 {[%emt 0:00:00]} 39. Rf1 {[%emt 0:00:07]} f6 {[%emt 0:01:04]} 40. gxf6 {[%emt 0:37:34]} gxf6 {[%emt 0:00:00]} 41. c3 {[%emt 0:00:00]} Rg6 {[%emt 0:00:39]} 42. b4 {[%emt 0:00:00]} e4 {[%emt 0:00:24]} 43. Kb3 {[%emt 0:00:00]} Kd6 {[%emt 0:01:46]} 44. b5 {[%emt 0:00:00]} Ke5 {[%emt 0:04:53]} 45. Kb4 {[%emt 0:00:00]} f5 {[%emt 0:00:05]} 46. Kc5 {[%emt 0:00:00]} Rg8 {[%emt 0:00:26]} 47. Kb6 {[%emt 0:00:00]} f4 {[%emt 0:01:34]} 0-1

[Event "Romanian-ch Open 2022"]
[Site "Eforie Nord"]
[Date "2022.02.24"]
[Round "6.21"]
[White "Cnejev, Vladimir-Alexandru"]
[Black "Craciun, Sasha-Matei"]
[Result "1/2-1/2"]
[ECO "C99"]
[WhiteElo "2179"]
[BlackElo "1871"]
[Annotator "NA RC"]
[PlyCount "130"]
[EventDate "2022.02.20"]
[EventType "swiss"]
[EventCountry "ROU"]
[SourceTitle "playchess.com"]
[Source "ChessBase"]
[SourceQuality "1"]
[TimeControl "40/5400+30:900+30"]

1. e4 {[%emt 0:02:43]} e5 {[%emt 0:00:10]} 2. Nf3 {[%emt 0:00:08]} Nc6 {[%emt 0:00:08]} 3. Bb5 {[%emt 0:00:02]} a6 {[%emt 0:00:08]} 4. Ba4 {[%emt 0:00:04]} Nf6 {[%emt 0:00:05]} 5. O-O {[%emt 0:00:09]} Be7 {[%emt 0:00:06]} 6. Re1 {[%emt 0:00:08]} b5 {[%emt 0:00:08]} 7. Bb3 {[%emt 0:00:08]} d6 {[%emt 0:00:10]} 8. c3 {[%emt 0:00:05]} O-O {[%emt 0:00:04]} 9. h3 {[%emt 0:00:03]} Na5 {[%emt 0:00:15]} 10. Bc2 {[%emt 0:00:05]} c5 {[%emt 0:00:04]} 11. d4 {[%emt 0:00:06]} Qc7 {[%emt 0:00:03]} 12. Nbd2 {[%emt 0:00:49]} cxd4 {[%emt 0:00:18]} 13. cxd4 {[%emt 1:32:30]} Nc6 {[%emt 0:00:05]} 14. d5 {[%emt 0:00:00]} Nb4 {[%emt 0:00:10]} 15. Bb1 {[%emt 0:00:00]} a5 {[%emt 0:00:06]} 16. Nf1 {[%emt 0:00:00]} Bd7 {[%emt 0:04:01]} 17. a3 {[%emt 0:00:00]} Na6 {[%emt 0:00:12]} 18. Ng3 {[%emt 0:00:00]} a4 {[%emt 0:09:25]} 19. Nh2 {[%emt 0:00:00]} Ne8 {[%emt 0:05:21]} 20. Ng4 {[%emt 0:00:00]} Nc5 {[%emt 0:13:47]} 21. Bc2 {[%emt 0:00:00]} Rc8 {[%emt 0:05:19]} 22. Bd2 {[%emt 0:00:00]} Qb7 {[%emt 0:04:08]} 23. Rc1 {[%emt 0:00:00]} f5 $16 {[%emt 0:14:00]} (23... Qb6 $11) 24. Nxf5 {[%emt 0:00:00]} Bxf5 {[%emt 0:00:08]} 25. exf5 {[%emt 0:00:00]} Qxd5 {[%emt 0:00:55]} 26. Ne3 {[%emt 0:00:00]} Qb7 {[%emt 0:05:42]} 27. b4 {[%emt 0:00:00]} Nd7 {[%emt 0:01:52]} 28. Be4 {[%emt 0:00:00]} Rxc1 {[%emt 0:02:35]} 29. Bxb7 {[%emt 0:00:00]} Rxd1 {[%emt 0:00:03]} 30. Rxd1 {[%emt 0:00:00]} Nef6 {[%emt 0:01:55]} 31. Nd5 {[%emt 0:00:00]} Kf7 {[%emt 0:03:02]} 32. Nc3 {[%emt 0:00:00]} Rb8 {[%emt 0:01:00]} 33. Bc6 {[%emt 0:00:00]} Nb6 {[%emt 0:01:22]} 34. Bxb5 {[%emt 0:00:24]} d5 {[%emt 0:00:25]} 35. Nxa4 {[%emt 0:04:01]} Nxa4 {[%emt 0:00:30]} 36. Bxa4 {[%emt 0:00:01]} Ra8 {[%emt 0:00:08]} 37. Bc6 {[%emt 0:00:42]} Rxa3 {[%emt 0:00:09]} 38. b5 {[%emt 0:01:37]} Bc5 {[%emt 0:02:43]} 39. Rc1 {[%emt 0:01:56]} Bb6 {[%emt 0:00:44]} 40. Bb4 {[%emt 0:00:00]} Rb3 {[%emt 0:00:00]} 41. Bc5 {[%emt 0:10:46]} Bxc5 {[%emt 0:01:51]} 42. Rxc5 {[%emt 0:00:02]} d4 {[%emt 0:00:41]} 43. Rxe5 {[%emt 0:01:12]} Rb1+ {[%emt 0:00:45]} 44. Kh2 {[%emt 0:00:01]} d3 {[%emt 0:00:15]} 45. Bf3 {[%emt 0:09:37]} d2 {[%emt 0:00:18]} 46. Rc5 {[%emt 0:00:28]} d1=Q {[%emt 0:01:13]} 47. Bxd1 {[%emt 0:00:01]} Rxd1 {[%emt 0:00:00]} 48. b6 {[%emt 0:01:07]} Ke7 {[%emt 0:02:59]} 49. Rc7+ {[%emt 0:00:30]} Nd7 {[%emt 0:00:03]} 50. b7 {[%emt 0:00:28]} Rb1 {[%emt 0:00:01]} 51. g4 {[%emt 0:00:22]} Kd6 {[%emt 0:00:31]} 52. Rc8 {[%emt 0:00:20]} Rxb7 {[%emt 0:00:01]} 53. Rh8 {[%emt 0:00:18]} h6 {[%emt 0:00:19]} 54. f4 {[%emt 0:00:44]} Rb8 {[%emt 0:00:57]} 55. Rxb8 {[%emt 0:00:26]} Nxb8 {[%emt 0:00:00]} 56. g5 {[%emt 0:00:07]} hxg5 {[%emt 0:01:04]} 57. fxg5 {[%emt 0:00:02]} Ke5 {[%emt 0:00:07]} 58. f6 {[%emt 0:00:05]} g6 {[%emt 0:00:36]} 59. h4 {[%emt 0:01:24]} Kf5 {[%emt 0:00:15]} 60. Kg3 {[%emt 0:00:08]} Nd7 {[%emt 0:00:12]} 61. Kf3 {[%emt 0:00:47]} Ne5+ {[%emt 0:00:29]} 62. Kg3 {[%emt 0:00:16]} Nf7 {[%emt 0:00:28]} 63. Kf3 {[%emt 0:00:09]} Ne5+ {[%emt 0:10:59]} 64. Kg3 {[%emt 0:00:00]} Nf7 {[%emt 0:00:30]} 65. Kf3 Ne5+ {[%emt 0:32:00]} 1/2-1/2

[Event "Romanian-ch Open 2022"]
[Site "Eforie Nord"]
[Date "2022.02.24"]
[Round "6.22"]
[White "Ciocani, Iosif"]
[Black "Vilcu, Matei-Stefan"]
[Result "1/2-1/2"]
[ECO "B96"]
[WhiteElo "1876"]
[BlackElo "2112"]
[Annotator "NA RC"]
[PlyCount "90"]
[EventDate "2022.02.20"]
[EventType "swiss"]
[EventCountry "ROU"]
[SourceTitle "playchess.com"]
[Source "ChessBase"]
[SourceQuality "1"]
[TimeControl "40/5400+30:900+30"]

1. e4 {[%emt 0:00:01]} c5 {[%emt 0:00:05]} 2. Nf3 {[%emt 0:00:05]} d6 {[%emt 0:00:03]} 3. d4 {[%emt 0:00:05]} cxd4 {[%emt 0:00:04]} 4. Nxd4 {[%emt 0:00:05]} Nf6 {[%emt 0:00:05]} 5. Nc3 {[%emt 0:00:05]} a6 {[%emt 0:00:04]} 6. Bg5 {[%emt 0:00:05]} e6 {[%emt 0:00:25]} 7. f4 {[%emt 0:00:07]} h6 {[%emt 0:00:20]} 8. Bh4 {[%emt 0:00:18]} Qb6 {[%emt 0:00:17]} 9. Qd2 {[%emt 0:01:28]} Qxb2 {[%emt 0:00:16]} 10. Rb1 {[%emt 0:00:07]} Qa3 {[%emt 0:00:04]} 11. f5 {[%emt 0:00:06]} Nc6 {[%emt 0:00:48]} 12. fxe6 {[%emt 0:00:37]} Bxe6 {[%emt 0:00:37]} 13. Nxe6 {[%emt 0:00:37]} fxe6 {[%emt 0:00:05]} 14. Bxf6 {[%emt 0:00:12]} gxf6 {[%emt 0:00:07]} 15. Rxb7 {[%emt 0:00:11]} h5 {[%emt 0:01:52]} 16. Be2 {[%emt 0:03:02]} Rc8 {[%emt 0:41:55]} 17. Rb3 $11 {[%emt 0:43:24]} Qa5 {[%emt 0:07:56]} 18. Rf1 {[%emt 0:09:40]} Be7 {[%emt 0:05:25]} 19. Nd1 {[%emt 0:16:38]} Qxd2+ {[%emt 0:17:59]} 20. Kxd2 {[%emt 0:00:07]} a5 {[%emt 0:03:01]} 21. Bb5 {[%emt 0:06:50]} Kf7 {[%emt 0:01:00]} 22. Bxc6 {[%emt 0:00:45]} Rxc6 {[%emt 0:00:05]} 23. Ne3 {[%emt 0:00:33]} Rhc8 {[%emt 0:01:34]} 24. Rb5 {[%emt 0:04:48]} Rc5 {[%emt 0:00:43]} 25. Rfb1 {[%emt 0:06:33]} Bf8 {[%emt 0:01:40]} 26. Rxc5 {[%emt 0:01:17]} Rxc5 {[%emt 0:01:57]} 27. a4 {[%emt 0:02:31]} Bh6 {[%emt 0:00:50]} 28. Rb5 {[%emt 0:02:04]} Rc4 {[%emt 0:09:57]} 29. Rxh5 {[%emt 0:01:32]} Rd4+ {[%emt 0:00:23]} 30. Ke2 {[%emt 0:00:25]} Kg6 {[%emt 0:01:21]} 31. Rh4 {[%emt 0:00:10]} Rxa4 {[%emt 0:00:23]} 32. Rg4+ {[%emt 0:01:03]} Kf7 {[%emt 0:00:32]} 33. e5 {[%emt 0:00:54]} Rxg4 {[%emt 0:02:14]} 34. Nxg4 {[%emt 0:00:04]} Bf4 {[%emt 0:00:34]} 35. exf6 {[%emt 0:00:12]} a4 {[%emt 0:00:18]} 36. Kd3 {[%emt 0:00:11]} Bc1 {[%emt 0:01:14]} 37. Kc3 {[%emt 0:00:12]} a3 {[%emt 0:00:24]} 38. Kb3 {[%emt 0:00:04]} e5 {[%emt 0:00:32]} 39. Nf2 {[%emt 0:01:48]} Kxf6 {[%emt 0:01:31]} 40. Nd3 {[%emt 0:00:00]} Bd2 {[%emt 0:00:00]} 41. Kxa3 {[%emt 0:01:31]} e4 {[%emt 0:00:55]} 42. Nf2 {[%emt 0:01:46]} e3 {[%emt 0:06:59]} 43. Nd3 {[%emt 0:00:12]} e2 {[%emt 0:00:23]} 44. Kb3 {[%emt 0:00:13]} d5 {[%emt 0:01:12]} 45. c4 {[%emt 0:04:43]} dxc4+ {[%emt 0:06:10]} 1/2-1/2

[Event "Romanian-ch Open 2022"]
[Site "Eforie Nord"]
[Date "2022.02.24"]
[Round "6.23"]
[White "Sachilaru, Alexandru"]
[Black "Capragiu, Matei-Stefan"]
[Result "1-0"]
[ECO "E90"]
[WhiteElo "2085"]
[BlackElo "1902"]
[Annotator "NA RC"]
[PlyCount "73"]
[EventDate "2022.02.20"]
[EventType "swiss"]
[EventCountry "ROU"]
[SourceTitle "playchess.com"]
[Source "ChessBase"]
[SourceQuality "1"]
[TimeControl "40/5400+30:900+30"]

1. d4 {[%emt 0:00:07]} Nf6 {[%emt 0:00:14]} 2. Nf3 {[%emt 0:00:25]} g6 {[%emt 0:00:05]} 3. c4 {[%emt 0:00:21]} Bg7 {[%emt 0:00:06]} 4. Nc3 {[%emt 0:00:14]} d6 {[%emt 0:00:08]} 5. e4 {[%emt 0:00:23]} O-O {[%emt 0:00:08]} 6. h3 {[%emt 0:00:18]} Nbd7 {[%emt 0:01:21]} 7. Be3 {[%emt 0:01:49]} e5 {[%emt 0:00:44]} 8. d5 {[%emt 0:00:30]} Ne8 {[%emt 0:01:53]} 9. g4 {[%emt 0:02:47]} a5 {[%emt 0:02:09]} 10. Be2 {[%emt 0:06:30]} Nc5 {[%emt 0:02:39]} 11. Nd2 {[%emt 0:05:39]} f5 {[%emt 0:02:58]} 12. gxf5 {[%emt 0:06:19]} gxf5 {[%emt 0:01:43]} 13. Qc2 {[%emt 0:00:43]} (13. Rg1 $14 {might be stronger.}) 13... f4 {[%emt 0:02:12]} (13... Na6 $11 {keeps the balance.} 14. Nf3 (14. Rg1 $2 f4 $19) 14... Nb4) 14. Bxc5 {[%emt 0:00:32]} dxc5 {[%emt 0:00:05]} 15. Nf3 {[%emt 0:04:51]} Nd6 {[%emt 0:01:42]} 16. O-O-O {[%emt 0:01:13]} ({Much weaker is} 16. Rg1 Kh8 $11) 16... Bf6 {[%emt 0:07:04]} 17. h4 $14 {[%emt 0:16:46]} Kh8 {[%emt 0:03:07]} 18. Rdg1 {[%emt 0:07:07]} Bd7 {[%emt 0:08:22]} 19. Ng5 {[%emt 0:21:08]} Qe7 {[%emt 0:03:04]} 20. Nb5 {[%emt 0:04:33]} Nxb5 {[%emt 0:12:01]} 21. cxb5 {[%emt 0:00:26]} Bxg5 {[%emt 0:00:20]} 22. hxg5 {[%emt 0:00:35]} Rg8 {[%emt 0:01:11]} 23. g6 {[%emt 0:01:45]} Rg7 {[%emt 0:00:24]} 24. Qc3 {[%emt 0:03:23]} Rag8 {[%emt 0:01:08]} 25. Rh5 {[%emt 0:02:32]} Rxg6 {[%emt 0:01:43]} 26. Rxg6 {[%emt 0:01:21]} Rxg6 {[%emt 0:00:08]} 27. Qxe5+ {[%emt 0:03:16]} Qxe5 {[%emt 0:00:36]} 28. Rxe5 {[%emt 0:00:21]} Kg8 {[%emt 0:01:33]} 29. Bc4 {[%emt 0:02:29]} Kf8 {[%emt 0:00:46]} 30. Rh5 {[%emt 0:00:37]} Kg7 {[%emt 0:00:45]} 31. e5 {[%emt 0:04:43]} h6 {[%emt 0:01:58]} 32. e6 {[%emt 0:01:33]} Be8 {[%emt 0:01:09]} 33. Rh4 {[%emt 0:00:12]} Rf6 {[%emt 0:02:36]} 34. b6 {[%emt 0:00:32]} cxb6 {[%emt 0:06:26]} 35. d6 {[%emt 0:00:08]} Kf8 {[%emt 0:00:23]} 36. Rg4 {[%emt 0:00:46]} Bg6 {[%emt 0:02:30]} 37. e7+ {[%emt 0:00:20]} 1-0